[Event "Titled Tuesday Blitz February 22 Early 2022"]
[White "Ponkratov, Pavel"]
[Black "Aradhya, Garg"]
[WhiteFideId "4157800"]
[BlackFideId "25006746"]
[WhiteElo "2487"]
[BlackElo "2169"]
[Result "1-0"]
[Round "03"]
[TimeControl "180+1"]
[Date "2022.02.22"]
[WhiteClock "0:01:43"]
[BlackClock "0:00:09"]

1. d4 {[%clk 0:02:59]}  d5 {[%clk 0:02:58]} 2. c4 {[%clk 0:02:59]}  c6 {[%clk 0:02:58]} 3. Nf3 {[%clk 0:02:59]}  Nf6 {[%clk 0:02:57]} 4. Qc2 {[%clk 0:03:00]}  g6 {[%clk 0:02:57]} 5. Nc3 {[%clk 0:02:58]}  Bg7 {[%clk 0:02:56]} 6. e4 {[%clk 0:02:57]}  dxe4 {[%clk 0:02:50]} 7. Nxe4 {[%clk 0:02:57]}  Nxe4 {[%clk 0:02:50]} 8. Qxe4 {[%clk 0:02:56]}  Bf5 {[%clk 0:02:50]} 9. Qh4 {[%clk 0:02:55]}  O-O {[%clk 0:02:49]} 10. Be2 {[%clk 0:02:55]}  c5 {[%clk 0:02:43]} 11. dxc5 {[%clk 0:02:32]}  Qa5+ {[%clk 0:02:36]} 12. Bd2 {[%clk 0:02:31]}  Qxc5 {[%clk 0:02:36]} 13. O-O {[%clk 0:02:31]}  Nc6 {[%clk 0:02:32]} 14. Bh6 {[%clk 0:02:29]}  f6 {[%clk 0:02:28]} 15. Be3 {[%clk 0:02:26]}  Qa5 {[%clk 0:02:26]} 16. a3 {[%clk 0:02:25]}  Qc7 {[%clk 0:02:19]} 17. c5 {[%clk 0:02:23]}  Ne5 {[%clk 0:01:47]} 18. b4 {[%clk 0:02:12]}  Nxf3+ {[%clk 0:01:45]} 19. Bxf3 {[%clk 0:02:11]}  Rad8 {[%clk 0:01:43]} 20. Rad1 {[%clk 0:02:09]}  e5 {[%clk 0:01:25]} 21. Qc4+ {[%clk 0:02:07]}  Kh8 {[%clk 0:01:25]} 22. b5 {[%clk 0:02:08]}  e4 {[%clk 0:01:05]} 23. Rxd8 {[%clk 0:01:57]}  Rxd8 {[%clk 0:00:58]} 24. Bxe4 {[%clk 0:01:57]}  Bxe4 {[%clk 0:00:58]} 25. Qxe4 {[%clk 0:01:57]}  f5 {[%clk 0:00:58]} 26. Qc4 {[%clk 0:01:57]}  b6 {[%clk 0:00:32]} 27. c6 {[%clk 0:01:55]}  Re8 {[%clk 0:00:28]} 28. Rd1 {[%clk 0:01:53]}  Qe7 {[%clk 0:00:21]} 29. a4 {[%clk 0:01:51]}  Be5 {[%clk 0:00:17]} 30. g3 {[%clk 0:01:50]}  Bd6 {[%clk 0:00:14]} 31. Bd4+ {[%clk 0:01:47]}  Be5 {[%clk 0:00:13]} 32. Re1 {[%clk 0:01:47]}  Qc7 {[%clk 0:00:12]} 33. Rxe5 {[%clk 0:01:47]}  Rxe5 {[%clk 0:00:12]} 34. Qc3 {[%clk 0:01:47]}  Kg8 {[%clk 0:00:12]} 35. Bxe5 {[%clk 0:01:47]}  Qd8 {[%clk 0:00:12]} 36. Qc4+ {[%clk 0:01:47]}  Kf8 {[%clk 0:00:11]} 37. c7 {[%clk 0:01:47]}  Qc8 {[%clk 0:00:12]} 38. Qd5 {[%clk 0:01:47]}  Qe8 {[%clk 0:00:07]} 39. Qd8 {[%clk 0:01:43]}  Kf7 {[%clk 0:00:07]} 40. Qxe8+ {[%clk 0:01:43]}  Kxe8 {[%clk 0:00:08]} 41. c8=Q+ {[%clk 0:01:44]}  Ke7 {[%clk 0:00:09]} 42. Qc7+ {[%clk 0:01:44]}  Ke6 {[%clk 0:00:09]} 43. f4 {[%clk 0:01:44]}  Kd5 {[%clk 0:00:09]} 44. Qc6# {[%clk 0:01:43]} 1-0


[Site "https://www.chess.com"]

[Event "Titled Tuesday Blitz February 22 Early 2022"]
[White "Popadic, Dragan"]
[Black "Steil-Antoni, Fiona"]
[WhiteFideId "913650"]
[BlackFideId "4001249"]
[WhiteElo "2199"]
[BlackElo "2059"]
[Result "1-0"]
[Round "03"]
[TimeControl "180+1"]
[Date "2022.02.22"]
[WhiteClock "0:00:36"]
[BlackClock "0:00:06"]

1. e4 {[%clk 0:03:00]}  e5 {[%clk 0:02:56]} 2. d4 {[%clk 0:03:00]}  exd4 {[%clk 0:02:51]} 3. Qxd4 {[%clk 0:02:59]}  Nc6 {[%clk 0:02:49]} 4. Qe3 {[%clk 0:02:59]}  Nge7 {[%clk 0:02:46]} 5. Nc3 {[%clk 0:02:58]}  Ng6 {[%clk 0:02:45]} 6. Bd2 {[%clk 0:02:54]}  d6 {[%clk 0:02:38]} 7. O-O-O {[%clk 0:02:48]}  Be7 {[%clk 0:02:37]} 8. h4 {[%clk 0:02:43]}  Bxh4 {[%clk 0:02:33]} 9. g3 {[%clk 0:02:41]}  Be7 {[%clk 0:02:27]} 10. f4 {[%clk 0:02:39]}  Bg4 {[%clk 0:02:26]} 11. Be2 {[%clk 0:02:39]}  Bxe2 {[%clk 0:02:25]} 12. Ngxe2 {[%clk 0:02:37]}  Qd7 {[%clk 0:02:26]} 13. Kb1 {[%clk 0:02:35]}  O-O-O {[%clk 0:02:25]} 14. Nd5 {[%clk 0:02:30]}  Rhe8 {[%clk 0:02:17]} 15. Nec3 {[%clk 0:02:27]}  h6 {[%clk 0:02:14]} 16. Nb5 {[%clk 0:02:08]}  Bf6 {[%clk 0:01:47]} 17. Nxa7+ {[%clk 0:01:41]}  Nxa7 {[%clk 0:01:38]} 18. Qxa7 {[%clk 0:01:40]}  Qb5 {[%clk 0:01:26]} 19. Bc3 {[%clk 0:01:26]}  Bxc3 {[%clk 0:01:20]} 20. Nxc3 {[%clk 0:01:25]}  Qa6 {[%clk 0:01:20]} 21. Qxa6 {[%clk 0:01:20]}  bxa6 {[%clk 0:01:21]} 22. Rd5 {[%clk 0:01:18]}  Ne7 {[%clk 0:01:16]} 23. Ra5 {[%clk 0:01:12]}  Kb7 {[%clk 0:01:17]} 24. Rd1 {[%clk 0:01:09]}  Nc6 {[%clk 0:01:12]} 25. Ra4 {[%clk 0:01:06]}  g5 {[%clk 0:01:12]} 26. a3 {[%clk 0:01:03]}  gxf4 {[%clk 0:01:06]} 27. gxf4 {[%clk 0:01:03]}  Rg8 {[%clk 0:01:07]} 28. Rh1 {[%clk 0:01:00]}  Rg4 {[%clk 0:01:00]} 29. f5 {[%clk 0:00:59]}  Rh8 {[%clk 0:00:55]} 30. Rh5 {[%clk 0:00:52]}  Rg5 {[%clk 0:00:50]} 31. Rh3 {[%clk 0:00:51]}  h5 {[%clk 0:00:50]} 32. Nd5 {[%clk 0:00:51]}  h4 {[%clk 0:00:40]} 33. Rb3+ {[%clk 0:00:50]}  Kc8 {[%clk 0:00:31]} 34. Rxa6 {[%clk 0:00:44]}  Kd7 {[%clk 0:00:31]} 35. Rc3 {[%clk 0:00:38]}  h3 {[%clk 0:00:06]} 36. Raxc6 {[%clk 0:00:36]} 1-0


[Site "https://www.chess.com"]

[Event "Titled Tuesday Blitz February 22 Early 2022"]
[White "Postnikov, Daniil"]
[Black "Srebrnic, Marko"]
[WhiteFideId "4166329"]
[BlackFideId "14603616"]
[WhiteElo "2261"]
[BlackElo "2340"]
[Result "1/2-1/2"]
[Round "03"]
[TimeControl "180+1"]
[Date "2022.02.22"]
[WhiteClock "0:00:02"]
[BlackClock "0:00:18"]

1. e4 {[%clk 0:03:00]}  c5 {[%clk 0:02:57]} 2. Nf3 {[%clk 0:02:59]}  Nc6 {[%clk 0:02:57]} 3. Bb5 {[%clk 0:03:00]}  g6 {[%clk 0:02:57]} 4. Bxc6 {[%clk 0:03:00]}  dxc6 {[%clk 0:02:58]} 5. d3 {[%clk 0:03:00]}  Bg7 {[%clk 0:02:58]} 6. h3 {[%clk 0:03:01]}  e5 {[%clk 0:02:59]} 7. Nc3 {[%clk 0:03:02]}  Qe7 {[%clk 0:02:59]} 8. Be3 {[%clk 0:03:03]}  b6 {[%clk 0:02:59]} 9. Qd2 {[%clk 0:03:04]}  Nf6 {[%clk 0:02:58]} 10. Bh6 {[%clk 0:03:03]}  Bxh6 {[%clk 0:02:56]} 11. Qxh6 {[%clk 0:03:04]}  Nd7 {[%clk 0:02:52]} 12. O-O {[%clk 0:03:03]}  f6 {[%clk 0:02:50]} 13. Nd2 {[%clk 0:03:03]}  Nf8 {[%clk 0:02:44]} 14. f4 {[%clk 0:02:54]}  exf4 {[%clk 0:02:44]} 15. Qxf4 {[%clk 0:02:52]}  Nd7 {[%clk 0:02:43]} 16. Qh6 {[%clk 0:02:39]}  Ne5 {[%clk 0:02:33]} 17. Rae1 {[%clk 0:02:29]}  Be6 {[%clk 0:02:32]} 18. Nf3 {[%clk 0:02:27]}  Nxf3+ {[%clk 0:02:29]} 19. Rxf3 {[%clk 0:02:28]}  O-O-O {[%clk 0:02:24]} 20. a3 {[%clk 0:02:27]}  Rhf8 {[%clk 0:02:19]} 21. Kh1 {[%clk 0:02:12]}  c4 {[%clk 0:02:18]} 22. Qe3 {[%clk 0:02:00]}  cxd3 {[%clk 0:02:08]} 23. cxd3 {[%clk 0:02:01]}  Qd7 {[%clk 0:02:03]} 24. Ne2 {[%clk 0:01:55]}  f5 {[%clk 0:02:00]} 25. Ref1 {[%clk 0:01:32]}  Rfe8 {[%clk 0:01:57]} 26. e5 {[%clk 0:01:27]}  c5 {[%clk 0:01:53]} 27. Nf4 {[%clk 0:01:15]}  Qd4 {[%clk 0:01:50]} 28. Qe2 {[%clk 0:00:55]}  Bd5 {[%clk 0:01:41]} 29. Re3 {[%clk 0:00:55]}  Be6 {[%clk 0:01:33]} 30. b4 {[%clk 0:00:51]}  cxb4 {[%clk 0:01:32]} 31. axb4 {[%clk 0:00:52]}  Kb8 {[%clk 0:01:29]} 32. b5 {[%clk 0:00:43]}  Rc8 {[%clk 0:01:24]} 33. g3 {[%clk 0:00:22]}  Rc5 {[%clk 0:01:10]} 34. Kh2 {[%clk 0:00:21]}  Rxb5 {[%clk 0:01:10]} 35. Rf2 {[%clk 0:00:16]}  Rb1 {[%clk 0:01:05]} 36. h4 {[%clk 0:00:14]}  Bd5 {[%clk 0:00:59]} 37. Nxd5 {[%clk 0:00:12]}  Qxd5 {[%clk 0:01:00]} 38. Rg2 {[%clk 0:00:11]}  Re6 {[%clk 0:00:56]} 39. Qc2 {[%clk 0:00:08]}  Rb4 {[%clk 0:00:52]} 40. Qc3 {[%clk 0:00:06]}  Qd4 {[%clk 0:00:50]} 41. Qd2 {[%clk 0:00:06]}  a5 {[%clk 0:00:48]} 42. Rge2 {[%clk 0:00:06]}  Qd5 {[%clk 0:00:47]} 43. Qc3 {[%clk 0:00:03]}  Rb1 {[%clk 0:00:46]} 44. Rg2 {[%clk 0:00:03]}  Rb3 {[%clk 0:00:46]} 45. Qc2 {[%clk 0:00:02]}  a4 {[%clk 0:00:46]} 46. Re1 {[%clk 0:00:02]}  a3 {[%clk 0:00:43]} 47. Rc1 {[%clk 0:00:03]}  Qxg2+ {[%clk 0:00:34]} 48. Qxg2 {[%clk 0:00:02]}  Rxe5 {[%clk 0:00:29]} 49. Qc6 {[%clk 0:00:02]}  Rb2+ {[%clk 0:00:19]} 50. Kg1 {[%clk 0:00:02]}  Rc5 {[%clk 0:00:19]} 51. Rxc5 {[%clk 0:00:02]}  bxc5 {[%clk 0:00:20]} 52. Qxc5 {[%clk 0:00:03]}  Rb1+ {[%clk 0:00:20]} 53. Kf2 {[%clk 0:00:03]}  Rb2+ {[%clk 0:00:21]} 54. Ke3 {[%clk 0:00:03]}  Rb7 {[%clk 0:00:20]} 55. Qxa3 {[%clk 0:00:03]}  Rd7 {[%clk 0:00:20]} 56. Qf8+ {[%clk 0:00:03]}  Kc7 {[%clk 0:00:21]} 57. Kf4 {[%clk 0:00:04]}  Rxd3 {[%clk 0:00:21]} 58. Kg5 {[%clk 0:00:04]}  Rd7 {[%clk 0:00:21]} 59. Kh6 {[%clk 0:00:04]}  Kc6 {[%clk 0:00:20]} 60. Qf6+ {[%clk 0:00:04]}  Kd5 {[%clk 0:00:20]} 61. h5 {[%clk 0:00:03]}  gxh5 {[%clk 0:00:19]} 62. Qxf5+ {[%clk 0:00:03]}  Kc6 {[%clk 0:00:20]} 63. Kxh5 {[%clk 0:00:03]}  Rd5 {[%clk 0:00:17]} 64. Qxd5+ {[%clk 0:00:03]}  Kxd5 {[%clk 0:00:17]} 65. Kh6 {[%clk 0:00:04]}  Ke4 {[%clk 0:00:18]} 66. g4 {[%clk 0:00:05]}  Kf4 {[%clk 0:00:18]} 67. g5 {[%clk 0:00:04]}  Kg4 {[%clk 0:00:18]} 68. Kxh7 {[%clk 0:00:02]}  Kxg5 {[%clk 0:00:18]} 1/2-1/2


[Site "https://www.chess.com"]

[Event "Titled Tuesday Blitz February 22 Early 2022"]
[White "Przybylski, Wojciech"]
[Black "Neiksans, Arturs"]
[WhiteFideId "1117599"]
[BlackFideId "11601388"]
[WhiteElo "2133"]
[BlackElo "2447"]
[Result "0-1"]
[Round "03"]
[TimeControl "180+1"]
[Date "2022.02.22"]
[WhiteClock "0:00:05"]
[BlackClock "0:00:39"]

1. e4 {[%clk 0:02:59]}  c5 {[%clk 0:02:59]} 2. Nf3 {[%clk 0:02:58]}  e6 {[%clk 0:02:59]} 3. b3 {[%clk 0:02:58]}  b6 {[%clk 0:02:59]} 4. Bb2 {[%clk 0:02:57]}  Bb7 {[%clk 0:02:59]} 5. Qe2 {[%clk 0:02:54]}  Nc6 {[%clk 0:02:54]} 6. d4 {[%clk 0:02:50]}  cxd4 {[%clk 0:02:51]} 7. Nxd4 {[%clk 0:02:49]}  Nxd4 {[%clk 0:02:50]} 8. Bxd4 {[%clk 0:02:48]}  Nf6 {[%clk 0:02:50]} 9. Nd2 {[%clk 0:02:46]}  Rc8 {[%clk 0:02:41]} 10. c4 {[%clk 0:02:40]}  Bb4 {[%clk 0:02:39]} 11. f3 {[%clk 0:02:37]}  O-O {[%clk 0:02:39]} 12. e5 {[%clk 0:02:17]}  Nh5 {[%clk 0:02:24]} 13. Qe3 {[%clk 0:02:08]}  d6 {[%clk 0:02:11]} 14. Bd3 {[%clk 0:02:05]}  Qh4+ {[%clk 0:01:48]} 15. Kd1 {[%clk 0:00:53]}  dxe5 {[%clk 0:01:42]} 16. Bxe5 {[%clk 0:00:44]}  Rfd8 {[%clk 0:01:41]} 17. Kc2 {[%clk 0:00:42]}  Bc5 {[%clk 0:01:29]} 18. Qe1 {[%clk 0:00:36]}  Qg5 {[%clk 0:01:27]} 19. g4 {[%clk 0:00:24]}  Nf4 {[%clk 0:01:18]} 20. h4 {[%clk 0:00:23]}  Qxe5 {[%clk 0:01:00]} 21. Bxh7+ {[%clk 0:00:13]}  Kxh7 {[%clk 0:01:00]} 22. Qxe5 {[%clk 0:00:13]}  Nd3 {[%clk 0:01:00]} 23. Qh5+ {[%clk 0:00:12]}  Kg8 {[%clk 0:01:01]} 24. Ne4 {[%clk 0:00:11]}  Nb4+ {[%clk 0:00:59]} 25. Kb2 {[%clk 0:00:10]}  Bxe4 {[%clk 0:00:57]} 26. fxe4 {[%clk 0:00:09]}  Rd2+ {[%clk 0:00:56]} 27. Kc1 {[%clk 0:00:09]}  Rcd8 {[%clk 0:00:51]} 28. a3 {[%clk 0:00:08]}  Na2+ {[%clk 0:00:51]} 29. Rxa2 {[%clk 0:00:08]}  Rxa2 {[%clk 0:00:51]} 30. Qe5 {[%clk 0:00:08]}  Rdd2 {[%clk 0:00:43]} 31. b4 {[%clk 0:00:07]}  Be3 {[%clk 0:00:40]} 32. Qb8+ {[%clk 0:00:06]}  Kh7 {[%clk 0:00:40]} 33. Re1 {[%clk 0:00:06]}  Rdc2+ {[%clk 0:00:38]} 34. Kb1 {[%clk 0:00:05]}  Rcb2# {[%clk 0:00:39]} 0-1


[Site "https://www.chess.com"]

[Event "Titled Tuesday Blitz February 22 Early 2022"]
[White "Quirke, Jeffrey"]
[Black "Talibov, Shiroghlan"]
[WhiteFideId "2013029"]
[BlackFideId "13429078"]
[WhiteElo "2215"]
[BlackElo "2070"]
[Result "0-1"]
[Round "03"]
[TimeControl "180+1"]
[Date "2022.02.22"]
[WhiteClock "0:00:01"]
[BlackClock "0:00:22"]

1. c4 {[%clk 0:03:00]}  g6 {[%clk 0:02:58]} 2. g3 {[%clk 0:03:00]}  Bg7 {[%clk 0:02:58]} 3. Bg2 {[%clk 0:03:00]}  h5 {[%clk 0:02:55]} 4. h4 {[%clk 0:02:58]}  e5 {[%clk 0:02:53]} 5. Nc3 {[%clk 0:02:56]}  Nc6 {[%clk 0:02:52]} 6. Nf3 {[%clk 0:02:56]}  Nh6 {[%clk 0:02:51]} 7. d3 {[%clk 0:02:54]}  O-O {[%clk 0:02:51]} 8. O-O {[%clk 0:02:53]}  d6 {[%clk 0:02:45]} 9. Rb1 {[%clk 0:02:50]}  a5 {[%clk 0:02:44]} 10. a3 {[%clk 0:02:49]}  f5 {[%clk 0:02:40]} 11. Ng5 {[%clk 0:02:32]}  Ne7 {[%clk 0:02:33]} 12. b4 {[%clk 0:02:22]}  axb4 {[%clk 0:02:33]} 13. axb4 {[%clk 0:02:23]}  f4 {[%clk 0:02:29]} 14. Nce4 {[%clk 0:02:07]}  c6 {[%clk 0:02:27]} 15. b5 {[%clk 0:01:50]}  d5 {[%clk 0:02:26]} 16. cxd5 {[%clk 0:01:38]}  cxd5 {[%clk 0:02:26]} 17. Nc5 {[%clk 0:01:30]}  Qd6 {[%clk 0:02:25]} 18. Qc2 {[%clk 0:01:18]}  Nhf5 {[%clk 0:02:16]} 19. gxf4 {[%clk 0:00:52]}  Nd4 {[%clk 0:02:07]} 20. fxe5 {[%clk 0:00:40]}  Bxe5 {[%clk 0:02:02]} 21. Qd2 {[%clk 0:00:27]}  Qxc5 {[%clk 0:01:58]} 22. e3 {[%clk 0:00:25]}  Qd6 {[%clk 0:01:39]} 23. exd4 {[%clk 0:00:24]}  Bxd4 {[%clk 0:01:40]} 24. Bb2 {[%clk 0:00:20]}  Ra2 {[%clk 0:01:38]} 25. Qc1 {[%clk 0:00:18]}  Bxb2 {[%clk 0:01:21]} 26. Rxb2 {[%clk 0:00:19]}  Ra4 {[%clk 0:01:22]} 27. Nf3 {[%clk 0:00:15]}  Rxf3 {[%clk 0:01:18]} 28. Bxf3 {[%clk 0:00:14]}  Rxh4 {[%clk 0:01:19]} 29. Re1 {[%clk 0:00:12]}  Bh3 {[%clk 0:01:17]} 30. Qe3 {[%clk 0:00:05]}  Kf7 {[%clk 0:01:04]} 31. Rbe2 {[%clk 0:00:02]}  Ng8 {[%clk 0:00:55]} 32. Qe8+ {[%clk 0:00:03]}  Kg7 {[%clk 0:00:54]} 33. Qe5+ {[%clk 0:00:04]}  Qxe5 {[%clk 0:00:53]} 34. Rxe5 {[%clk 0:00:04]}  Rb4 {[%clk 0:00:51]} 35. Rxd5 {[%clk 0:00:04]}  Nf6 {[%clk 0:00:50]} 36. Rd6 {[%clk 0:00:04]}  Rxb5 {[%clk 0:00:47]} 37. Re7+ {[%clk 0:00:04]}  Kf8 {[%clk 0:00:47]} 38. Rc7 {[%clk 0:00:03]}  Ne8 {[%clk 0:00:42]} 39. Rd8 {[%clk 0:00:03]}  Re5 {[%clk 0:00:41]} 40. Rxb7 {[%clk 0:00:02]}  Re7 {[%clk 0:00:36]} 41. Rbb8 {[%clk 0:00:02]}  Kf7 {[%clk 0:00:31]} 42. Rxe8 {[%clk 0:00:03]}  Rxe8 {[%clk 0:00:31]} 43. Rxe8 {[%clk 0:00:04]}  Kxe8 {[%clk 0:00:31]} 44. Kh2 {[%clk 0:00:04]}  Bf5 {[%clk 0:00:31]} 45. Kg3 {[%clk 0:00:03]}  Bxd3 {[%clk 0:00:30]} 46. Bd5 {[%clk 0:00:03]}  Ke7 {[%clk 0:00:28]} 47. f4 {[%clk 0:00:03]}  Kf6 {[%clk 0:00:28]} 48. Bb3 {[%clk 0:00:02]}  Kf5 {[%clk 0:00:25]} 49. Ba4 {[%clk 0:00:02]}  Bc4 {[%clk 0:00:24]} 50. Bd7+ {[%clk 0:00:01]}  Be6 {[%clk 0:00:24]} 51. Bc6 {[%clk 0:00:02]}  h4+ {[%clk 0:00:22]} 52. Kxh4 {[%clk 0:00:01]}  Kxf4 {[%clk 0:00:22]} 0-1


[Site "https://www.chess.com"]

[Event "Titled Tuesday Blitz February 22 Early 2022"]
[White "Rodchenkov, Sergey D."]
[Black "Obolenskikh, Dmitry"]
[WhiteFideId "4168712"]
[BlackFideId "4156013"]
[WhiteElo "2306"]
[BlackElo "2512"]
[Result "1/2-1/2"]
[Round "03"]
[TimeControl "180+1"]
[Date "2022.02.22"]
[WhiteClock "0:00:50"]
[BlackClock "0:01:59"]

1. e4 {[%clk 0:03:00]}  e5 {[%clk 0:02:59]} 2. Nf3 {[%clk 0:03:01]}  Nc6 {[%clk 0:02:59]} 3. Bc4 {[%clk 0:03:01]}  Bc5 {[%clk 0:02:59]} 4. d3 {[%clk 0:03:01]}  Nf6 {[%clk 0:02:59]} 5. O-O {[%clk 0:03:02]}  O-O {[%clk 0:02:59]} 6. Nbd2 {[%clk 0:03:02]}  d6 {[%clk 0:02:57]} 7. c3 {[%clk 0:03:02]}  Bb6 {[%clk 0:02:52]} 8. h3 {[%clk 0:02:57]}  Ne7 {[%clk 0:02:52]} 9. Re1 {[%clk 0:02:43]}  Ng6 {[%clk 0:02:52]} 10. Nf1 {[%clk 0:02:40]}  c6 {[%clk 0:02:51]} 11. Ng3 {[%clk 0:02:21]}  d5 {[%clk 0:02:41]} 12. Bb3 {[%clk 0:02:16]}  Re8 {[%clk 0:02:35]} 13. Bg5 {[%clk 0:02:03]}  Be6 {[%clk 0:02:26]} 14. Nh5 {[%clk 0:01:24]}  dxe4 {[%clk 0:02:26]} 15. Bxf6 {[%clk 0:01:25]}  gxf6 {[%clk 0:02:20]} 16. dxe4 {[%clk 0:01:21]}  Qe7 {[%clk 0:02:10]} 17. Qc1 {[%clk 0:01:17]}  Kh8 {[%clk 0:02:03]} 18. Qh6 {[%clk 0:01:11]}  Rg8 {[%clk 0:02:03]} 19. Rad1 {[%clk 0:01:03]}  Rad8 {[%clk 0:01:59]} 20. Rxd8 {[%clk 0:00:52]}  Bxd8 {[%clk 0:01:59]} 21. Rd1 {[%clk 0:00:50]} 1/2-1/2


[Site "https://www.chess.com"]

[Event "Titled Tuesday Blitz February 22 Early 2022"]
[White "Sadhwani, Raunak"]
[Black "Urbina Perez, Juan Antonio"]
[WhiteFideId "35093487"]
[BlackFideId "2217368"]
[WhiteElo "2616"]
[BlackElo "2192"]
[Result "1-0"]
[Round "03"]
[TimeControl "180+1"]
[Date "2022.02.22"]
[WhiteClock "0:02:20"]
[BlackClock "0:01:23"]

1. d4 {[%clk 0:03:00]}  d5 {[%clk 0:02:58]} 2. Nf3 {[%clk 0:03:01]}  Nf6 {[%clk 0:02:57]} 3. Bf4 {[%clk 0:02:57]}  e6 {[%clk 0:02:58]} 4. e3 {[%clk 0:02:56]}  Bd6 {[%clk 0:02:58]} 5. Nbd2 {[%clk 0:02:56]}  c5 {[%clk 0:02:57]} 6. c3 {[%clk 0:02:57]}  Qc7 {[%clk 0:02:58]} 7. Bxd6 {[%clk 0:02:57]}  Qxd6 {[%clk 0:02:57]} 8. Ne5 {[%clk 0:02:58]}  Nfd7 {[%clk 0:02:45]} 9. f4 {[%clk 0:02:56]}  Nc6 {[%clk 0:02:31]} 10. Bd3 {[%clk 0:02:56]}  cxd4 {[%clk 0:02:25]} 11. exd4 {[%clk 0:02:57]}  Ne7 {[%clk 0:02:18]} 12. O-O {[%clk 0:02:56]}  Nf6 {[%clk 0:02:18]} 13. Qf3 {[%clk 0:02:48]}  Bd7 {[%clk 0:02:15]} 14. Rae1 {[%clk 0:02:48]}  O-O {[%clk 0:02:13]} 15. Qh3 {[%clk 0:02:49]}  Ng6 {[%clk 0:02:03]} 16. g4 {[%clk 0:02:42]}  Rad8 {[%clk 0:01:54]} 17. g5 {[%clk 0:02:42]}  Ne4 {[%clk 0:01:49]} 18. Nxe4 {[%clk 0:02:39]}  dxe4 {[%clk 0:01:50]} 19. Bxe4 {[%clk 0:02:40]}  Bc6 {[%clk 0:01:50]} 20. Qg2 {[%clk 0:02:35]}  Bxe4 {[%clk 0:01:48]} 21. Qxe4 {[%clk 0:02:36]}  b6 {[%clk 0:01:45]} 22. Re2 {[%clk 0:02:32]}  Rc8 {[%clk 0:01:40]} 23. Rf3 {[%clk 0:02:20]}  Qd5 {[%clk 0:01:35]} 24. Qxd5 {[%clk 0:02:20]}  exd5 {[%clk 0:01:36]} 25. f5 {[%clk 0:02:20]}  Nxe5 {[%clk 0:01:34]} 26. Rxe5 {[%clk 0:02:21]}  Rfd8 {[%clk 0:01:33]} 27. f6 {[%clk 0:02:20]}  Rc7 {[%clk 0:01:29]} 28. Rfe3 {[%clk 0:02:20]}  Kf8 {[%clk 0:01:29]} 29. Re7 {[%clk 0:02:19]}  Rdc8 {[%clk 0:01:27]} 30. Re8+ {[%clk 0:02:18]}  Rxe8 {[%clk 0:01:26]} 31. Rxe8+ {[%clk 0:02:19]}  Kxe8 {[%clk 0:01:23]} 32. fxg7 {[%clk 0:02:20]} 1-0


[Site "https://www.chess.com"]

[Event "Titled Tuesday Blitz February 22 Early 2022"]
[White "Samaganova, Aleksandra"]
[Black "Kozelov, Roman"]
[WhiteFideId "13800221"]
[BlackFideId "14133377"]
[WhiteElo "1859"]
[BlackElo "2160"]
[Result "0-1"]
[Round "03"]
[TimeControl "180+1"]
[Date "2022.02.22"]
[WhiteClock "0:00:02"]
[BlackClock "0:00:20"]

1. c4 {[%clk 0:03:00]}  b6 {[%clk 0:02:59]} 2. Nf3 {[%clk 0:02:55]}  Bb7 {[%clk 0:02:59]} 3. b3 {[%clk 0:02:55]}  Nf6 {[%clk 0:02:59]} 4. Bb2 {[%clk 0:02:55]}  g6 {[%clk 0:03:00]} 5. e3 {[%clk 0:02:55]}  Bg7 {[%clk 0:03:00]} 6. Be2 {[%clk 0:02:55]}  O-O {[%clk 0:03:01]} 7. O-O {[%clk 0:02:55]}  e6 {[%clk 0:03:00]} 8. d4 {[%clk 0:02:53]}  d5 {[%clk 0:03:00]} 9. Nbd2 {[%clk 0:02:53]}  Nbd7 {[%clk 0:03:00]} 10. Rc1 {[%clk 0:02:53]}  c5 {[%clk 0:03:00]} 11. cxd5 {[%clk 0:02:48]}  exd5 {[%clk 0:02:59]} 12. Bb5 {[%clk 0:02:36]}  Rc8 {[%clk 0:02:55]} 13. Qe2 {[%clk 0:02:34]}  Re8 {[%clk 0:02:51]} 14. Rfd1 {[%clk 0:02:28]}  Qe7 {[%clk 0:02:48]} 15. Ne5 {[%clk 0:02:03]}  Red8 {[%clk 0:02:33]} 16. h3 {[%clk 0:01:56]}  Nxe5 {[%clk 0:02:22]} 17. dxe5 {[%clk 0:01:55]}  Ne4 {[%clk 0:02:17]} 18. Nf3 {[%clk 0:01:37]}  Ng5 {[%clk 0:01:52]} 19. Nxg5 {[%clk 0:01:18]}  Qxg5 {[%clk 0:01:51]} 20. f4 {[%clk 0:01:19]}  Qg3 {[%clk 0:01:48]} 21. Qf2 {[%clk 0:01:17]}  Qxf2+ {[%clk 0:01:45]} 22. Kxf2 {[%clk 0:01:18]}  a6 {[%clk 0:01:44]} 23. Be2 {[%clk 0:01:16]}  h5 {[%clk 0:01:35]} 24. g4 {[%clk 0:01:13]}  h4 {[%clk 0:01:34]} 25. Bd3 {[%clk 0:01:03]}  b5 {[%clk 0:01:30]} 26. Ba3 {[%clk 0:00:40]}  c4 {[%clk 0:01:02]} 27. Bb1 {[%clk 0:00:31]}  Rd7 {[%clk 0:00:56]} 28. e6 {[%clk 0:00:16]}  fxe6 {[%clk 0:00:55]} 29. Bxg6 {[%clk 0:00:16]}  a5 {[%clk 0:00:50]} 30. bxc4 {[%clk 0:00:13]}  Rxc4 {[%clk 0:00:43]} 31. Rxc4 {[%clk 0:00:12]}  bxc4 {[%clk 0:00:44]} 32. f5 {[%clk 0:00:12]}  exf5 {[%clk 0:00:41]} 33. Bxf5 {[%clk 0:00:12]}  Rc7 {[%clk 0:00:34]} 34. Be6+ {[%clk 0:00:10]}  Kh7 {[%clk 0:00:34]} 35. Bf5+ {[%clk 0:00:07]}  Kg8 {[%clk 0:00:33]} 36. Be6+ {[%clk 0:00:07]}  Kh8 {[%clk 0:00:34]} 37. Ke2 {[%clk 0:00:03]}  c3 {[%clk 0:00:30]} 38. Kd3 {[%clk 0:00:02]}  c2 {[%clk 0:00:22]} 39. Rc1 {[%clk 0:00:02]}  Rc3+ {[%clk 0:00:23]} 40. Kd2 {[%clk 0:00:01]}  Rxa3 {[%clk 0:00:21]} 41. Rxc2 {[%clk 0:00:02]}  Be5 {[%clk 0:00:20]} 0-1


[Site "https://www.chess.com"]

[Event "Titled Tuesday Blitz February 22 Early 2022"]
[White "Samunenkov, Ihor"]
[Black "Tari, Aryan"]
[WhiteFideId "14187086"]
[BlackFideId "1510045"]
[WhiteElo "2406"]
[BlackElo "2567"]
[Result "0-1"]
[Round "03"]
[TimeControl "180+1"]
[Date "2022.02.22"]
[WhiteClock "0:00:11"]
[BlackClock "0:00:41"]

1. d4 {[%clk 0:03:00]}  d6 {[%clk 0:02:59]} 2. e4 {[%clk 0:03:00]}  Nf6 {[%clk 0:02:57]} 3. Nc3 {[%clk 0:03:00]}  e5 {[%clk 0:02:55]} 4. Nf3 {[%clk 0:02:58]}  Nbd7 {[%clk 0:02:55]} 5. Bc4 {[%clk 0:02:58]}  Be7 {[%clk 0:02:49]} 6. O-O {[%clk 0:02:59]}  O-O {[%clk 0:02:49]} 7. a4 {[%clk 0:02:58]}  a5 {[%clk 0:02:46]} 8. Qe2 {[%clk 0:02:48]}  c6 {[%clk 0:02:46]} 9. Rd1 {[%clk 0:02:46]}  Qc7 {[%clk 0:02:44]} 10. h3 {[%clk 0:02:37]}  h6 {[%clk 0:02:41]} 11. Be3 {[%clk 0:02:31]}  Re8 {[%clk 0:02:39]} 12. dxe5 {[%clk 0:01:56]}  Nxe5 {[%clk 0:02:29]} 13. Ba2 {[%clk 0:01:56]}  Bf8 {[%clk 0:02:21]} 14. Nd4 {[%clk 0:01:55]}  Ng6 {[%clk 0:02:22]} 15. Qd3 {[%clk 0:01:34]}  Ne5 {[%clk 0:01:51]} 16. Qd2 {[%clk 0:01:29]}  Ng6 {[%clk 0:01:51]} 17. f3 {[%clk 0:01:21]}  d5 {[%clk 0:01:44]} 18. exd5 {[%clk 0:01:20]}  Bxh3 {[%clk 0:01:45]} 19. dxc6 {[%clk 0:00:56]}  bxc6 {[%clk 0:01:46]} 20. Qf2 {[%clk 0:00:54]}  Bd7 {[%clk 0:01:31]} 21. Nb3 {[%clk 0:00:54]}  Bb4 {[%clk 0:01:24]} 22. Nc5 {[%clk 0:00:51]}  Rxe3 {[%clk 0:01:03]} 23. Qxe3 {[%clk 0:00:45]}  Qa7 {[%clk 0:00:48]} 24. N3e4 {[%clk 0:00:20]}  Nxe4 {[%clk 0:00:48]} 25. Rxd7 {[%clk 0:00:20]}  Bxc5 {[%clk 0:00:42]} 26. Bxf7+ {[%clk 0:00:20]}  Kf8 {[%clk 0:00:41]} 27. Rxa7 {[%clk 0:00:13]}  Bxe3+ {[%clk 0:00:42]} 28. Kh2 {[%clk 0:00:13]}  Bf4+ {[%clk 0:00:41]} 29. Kh3 {[%clk 0:00:11]}  Nf2# {[%clk 0:00:41]} 0-1


[Site "https://www.chess.com"]